bitfinex/quotes_ETHUSD_20240810
["timestamp","ask_amount","ask_price","bid_price","bid_amount"]
[1723249719303,0.615884,2617.1,2616.0,0.24]
[1723249719519,3.82178,2616.6,2616.0,0.24]
[1723249719734,3.82248,2616.1,2616.0,0.24]
[1723249719933,2.4816,2616.6,2616.0,0.24]
[1723249719934,3.82247,2616.2,2616.0,0.24]
[1723249720249,7.64496,2616.1,2616.0,0.24]
[1723249720455,0.764496,2616.1,2616.0,0.24]
[1723249720746,7.64496,2616.1,2616.0,0.24]
[1723249721122,3.82224,2616.3,2616.0,0.24]
[1723249721471,7.64399,2616.5,2616.0,0.24]
[1723249721627,3.0,2616.4,2616.0,0.24]
[1723249721839,3.82244,2616.2,2616.0,0.24]
[1723249722140,3.82248,2616.1,2616.0,0.24]
[1723249722323,7.64496,2616.1,2616.0,0.24]
[1723249722523,8.409456,2616.1,2616.0,0.24]
[1723249722950,4.586976,2616.1,2616.0,0.24]
[1723249723150,3.82248,2616.1,2616.0,0.24]
[1723249723351,3.82225,2616.3,2616.0,0.24]
[1723249723552,3.82194,2616.5,2616.0,0.24]
[1723249723956,3.82215,2616.4,2616.0,0.24]
[1723249724116,3.0,2616.6,2616.0,0.24]
[1723249724317,3.632164,2616.6,2616.0,0.24]
[1723249724638,3.82221,2616.3,2616.0,0.24]
[1723249724855,3.82201,2616.5,2616.0,0.24]
[1723249724856,3.822,2616.5,2616.0,0.24]
[1723249725162,3.82184,2616.6,2616.0,0.24]
[1723249725839,3.82232,2616.3,2616.0,0.24]
[1723249726452,3.82156,2616.8,2616.0,2.5776]
[1723249726631,7.64496,2616.1,2616.0,0.24]
[1723249726823,11.46744,2616.1,2616.0,0.24]
[1723249727754,14.46744,2616.1,2616.0,1e-05]
[1723249727933,22.218264,2616.1,2616.0,1e-05]
[1723249728255,18.395784,2616.1,2616.0,1e-05]
[1723249730352,18.945784,2616.1,2616.0,1e-05]
[1723249730923,22.768264,2616.1,2616.0,1e-05]
[1723249731110,22.868264,2616.1,2616.0,1e-05]
[1723249731557,22.768264,2616.1,2616.0,1e-05]
[1723249732616,18.945784,2616.1,2616.0,1e-05]
[1723249732855,22.768264,2616.1,2616.0,1e-05]
[1723249733016,18.395784,2616.1,2616.0,1e-05]
[1723249733211,22.218264,2616.1,2616.0,1e-05]
[1723249733431,22.768264,2616.1,2616.0,1e-05]
[1723249733930,26.590744,2616.1,2616.0,1e-05]
[1723249734132,22.768264,2616.1,2616.0,1e-05]
[1723249734432,18.395784,2616.1,2616.0,1e-05]
[1723249735670,22.218264,2616.1,2616.0,1e-05]
[1723249736332,26.040744,2616.1,2616.0,1e-05]
[1723249736534,26.590744,2616.1,2616.0,1e-05]
[1723249739275,22.768264,2616.1,2616.0,1e-05]
[1723249740085,11.46744,2616.1,2616.0,1e-05]
[1723249740588,7.64496,2616.1,2616.0,1e-05]
[1723249741020,3.82248,2616.1,2616.0,1e-05]
[1723249741524,7.64496,2616.1,2616.0,1e-05]
[1723249742031,19.1124,2616.1,2616.0,1e-05]
[1723249742204,19.1124,2616.1,2614.5,2.3702]
[1723249742205,3.82467,2614.6,2614.5,2.3702]
[1723249742370,3.82549,2614.1,2613.9,2.3702]
[1723249743316,3.82549,2614.1,2612.9,9.22312]
[1723249743317,3.82578,2613.9,2613.3,2.3702]
[1723249743738,5.3528,2614.5,2612.2,0.1]
[1723249743879,6.1788,2613.7,2612.3,2.3702]
[1723249744081,3.82711,2613.0,2612.3,2.3702]
[1723249744439,3.0,2613.6,2612.3,2.3507]
[1723249744440,3.82671,2613.3,2612.3,2.3507]
[1723249744622,3.82729,2612.9,2611.4,0.0769629]
[1723249744774,3.0,2613.2,2611.5,0.07657461]
[1723249745006,3.0,2613.2,2611.6,0.07655812]
[1723249745188,3.82687,2613.1,2612.3,3.82789]
[1723249746413,6.82661,2613.3,2612.3,3.82789]
[1723249746623,3.82688,2613.1,2612.3,3.82789]
[1723249746781,3.0,2613.3,2611.9,0.005]
[1723249746977,3.82646,2613.4,2612.3,3.82794]
[1723249747190,3.82685,2613.2,2612.5,3.82771]
[1723249747405,3.82685,2613.2,2612.6,2.3702]
[1723249747981,3.82714,2613.0,2612.6,2.3702]
[1723249748213,3.82714,2613.0,2612.0,6.82845]
[1723249748214,3.82735,2612.8,2612.1,2.3702]
[1723249748521,3.82705,2613.0,2612.1,2.3702]
[1723249748681,3.82732,2612.8,2612.1,2.3702]
[1723249749020,3.82744,2612.8,2612.1,2.3702]
[1723249749327,3.8277,2612.6,2612.1,2.3702]
[1723249749641,3.82795,2612.4,2611.9,0.005]
[1723249749793,3.0,2612.5,2611.9,0.005]
[1723249749794,11.48544,2612.0,2611.9,0.005]
[1723249749996,7.65696,2612.0,2611.9,0.005]
[1723249750196,10.65696,2612.0,2611.9,0.005]
[1723249750689,2.3528,2612.7,2611.9,0.005]
[1723249750993,3.82778,2612.5,2611.9,0.005]
[1723249751201,3.82848,2612.0,2611.9,0.005]
[1723249751396,11.48544,2612.0,2611.9,0.005]
[1723249751890,15.31392,2612.0,2611.9,0.005]
[1723249752097,7.65842,2611.5,2610.4,2.3702]
[1723249752321,11.48763,2611.5,2610.4,2.3702]
[1723249752483,14.48763,2611.5,2610.4,2.3702]
[1723249752681,10.65842,2611.5,2610.4,2.3702]
[1723249752882,15.553472,2611.5,2610.4,2.3702]
[1723249753309,11.724262,2611.5,2610.4,2.3702]
[1723249753917,15.553472,2611.5,2610.4,2.3702]
[1723249754235,15.553472,2611.5,2609.9,5.3702]
[1723249754435,6.82921,2611.5,2610.7,2.3702]
[1723249754926,10.65342,2611.5,2610.7,2.3702]
[1723249755127,3.82909,2611.6,2610.7,2.3702]
[1723249755295,3.82889,2611.8,2610.7,2.3702]
[1723249755498,3.82879,2611.8,2611.1,3.82978]
[1723249755894,3.82855,2612.0,2611.1,3.82976]
[1723249756310,3.82855,2612.0,2611.1,3.8297]
[1723249756514,3.82848,2612.0,2611.1,3.82975]
[1723249756748,3.82903,2611.7,2610.9,3.82999]
[1723249757037,3.82908,2611.6,2611.0,3.0]
[1723249757197,3.82921,2611.5,2610.7,6.20056]
[1723249757397,7.65842,2611.5,2610.7,2.3702]
[1723249757649,15.253472,2611.5,2610.7,2.3702]
[1723249757935,15.253472,2611.5,2610.2,3.83108]
[1723249757936,15.253472,2611.5,2610.2,2.3702]
[1723249759052,19.632682,2611.5,2611.4,2.9e-06]
[1723249759213,19.632682,2611.5,2609.7,2.4113]
[1723249759214,3.83087,2610.4,2609.7,6.24311]
[1723249760331,3.83087,2610.4,2609.7,2.4113]
[1723249760502,3.83107,2610.3,2609.7,2.4113]
[1723249760710,3.83025,2610.8,2609.2,2.4113]
[1723249760924,3.83141,2610.1,2609.3,3.83239]
[1723249761131,3.83055,2610.6,2609.3,3.83239]
[1723249761132,7.66302,2610.0,2609.3,3.83239]
[1723249761334,3.8321,2609.6,2609.2,2.4113]
[1723249761848,3.83176,2609.8,2609.2,2.4113]
[1723249762051,3.83176,2609.8,2609.1,3.8327]
[1723249762243,3.83176,2609.8,2609.1,3.83261]
[1723249762419,3.83159,2609.9,2609.1,3.83261]
[1723249762752,0.3,2610.3,2609.2,3.83248]
[1723249762905,0.3,2610.3,2609.1,3.83272]
[1723249762906,4.13104,2610.3,2609.1,3.83272]
[1723249763106,3.83181,2609.8,2608.9,3.83291]
[1723249763316,3.82966,2611.2,2608.9,2.4113]
[1723249763543,3.83099,2610.3,2609.7,2.4113]
[1723249763745,3.83168,2609.9,2609.3,2.4113]
[1723249764044,3.83153,2610.0,2609.3,2.4113]
[1723249764346,3.83159,2609.9,2609.3,2.4113]
[1723249764736,3.83132,2610.1,2609.3,6.2436]
[1723249764908,3.0,2610.5,2609.3,2.4113]
[1723249765121,3.83171,2609.9,2609.3,2.4113]
[1723249765411,3.83209,2609.6,2608.9,2.4113]
[1723249765751,3.0,2610.4,2608.9,2.4113]
[1723249765953,3.83107,2610.3,2609.5,3.83212]
[1723249766107,3.83012,2610.9,2610.2,3.83102]
[1723249766306,3.089142,2611.5,2609.8,2.4113]
[1723249766513,3.83059,2610.6,2609.8,2.4113]
[1723249766706,3.82942,2611.4,2609.8,6.24298]
[1723249766930,3.83072,2610.5,2609.8,6.24298]
[1723249767256,3.8302,2610.9,2610.1,3.83114]
[1723249767442,3.8302,2610.9,2609.9,7.71804799]
[1723249767743,2.3233,2611.5,2609.9,0.2466388]
[1723249767908,3.83035,2610.8,2610.1,3.83116]
[1723249768107,3.83012,2610.9,2610.2,3.83105]
[1723249768420,3.83015,2610.9,2610.1,3.83116]
[1723249768635,3.82989,2611.1,2610.3,3.83094]
[1723249768842,6.67999,2611.0,2610.3,3.83094]
[1723249769013,3.82954,2611.3,2610.6,3.8304]
[1723249769362,3.62,2611.9,2610.9,7.66]
[1723249769363,3.8287,2611.9,2610.9,7.66]
[1723249769531,3.82899,2611.7,2610.9,3.83]
[1723249769730,3.82899,2611.7,2610.7,6.24162]
[1723249769731,3.82855,2612.0,2611.1,3.82978]
[1723249769923,3.8283,2612.2,2610.8,3.83018]
[1723249770131,3.82828,2612.2,2611.5,6.24051]
[1723249770308,3.82752,2612.7,2611.5,2.4113]
[1723249770533,3.82752,2612.7,2611.6,0.626567]
[1723249770723,3.82747,2612.7,2612.0,3.82834]
[1723249770920,3.82747,2612.7,2612.0,7.65673]
[1723249771124,3.82722,2612.9,2612.2,3.82817]
[1723249771327,3.82722,2612.9,2612.0,3.82834]
[1723249771530,3.82748,2612.7,2612.0,3.82834]
[1723249771853,3.82798,2612.4,2611.5,2.4113]
[1723249772067,3.82722,2612.9,2612.1,3.82832]
[1723249772355,3.82722,2612.9,2612.1,7.65655]
[1723249772557,3.82719,2612.9,2611.6,0.55]
[1723249772852,3.8278,2612.5,2611.7,3.8289]
[1723249773155,3.8262,2613.6,2611.8,3.82872]
[1723249773357,3.82829,2612.2,2611.5,2.4113]
[1723249773572,2.4233,2613.5,2611.0,6.24118]
[1723249773573,3.8285,2612.0,2611.0,6.24118]
[1723249773857,3.8281,2612.3,2611.6,3.82896]
[1723249774056,3.0,2612.3,2611.4,3.82926]
[1723249774222,3.0,2612.5,2611.2,3.82953]
[1723249774223,3.82859,2612.0,2611.2,3.82953]
[1723249774413,3.82821,2612.2,2611.2,3.82953]
[1723249774725,7.12793,2612.4,2611.4,3.82924]
[1723249774933,3.82819,2612.2,2611.4,3.82934]
[1723249775242,3.82765,2612.6,2611.7,3.82881]
[1723249775450,3.82765,2612.6,2611.9,3.82852]
[1723249775829,3.82792,2612.4,2611.8,2.4113]
[1723249776044,3.82806,2612.3,2611.6,3.82906]
[1723249776214,3.82792,2612.4,2611.7,3.8288]
[1723249776420,6.15018,2613.1,2612.4,3.82782]
[1723249776421,3.82688,2613.1,2612.4,3.82782]
[1723249776615,3.82711,2613.0,2612.3,3.82791]
[1723249776860,3.8277,2612.6,2611.8,2.4113]
[1723249777144,3.82801,2612.4,2611.8,2.4113]
[1723249777532,3.82751,2612.7,2611.8,2.4113]
[1723249777824,3.82815,2612.3,2611.8,2.4113]
[1723249778236,3.82737,2612.8,2611.8,2.4113]
[1723249778455,3.82804,2612.4,2611.8,2.4113]
[1723249778657,7.65481,2612.8,2611.9,3.82853]
[1723249778877,3.82713,2613.0,2612.1,3.82822]
[1723249779167,3.82713,2613.0,2612.3,3.82801]
[1723249779353,3.82731,2612.8,2612.1,3.82822]
[1723249779680,3.82731,2612.8,2612.1,7.65645]
[1723249779977,3.828,2612.4,2611.8,2.4113]
[1723249780180,0.765444,2612.8,2611.4,3.0]
[1723249780181,3.82834,2612.1,2611.4,3.0]
[1723249780343,3.82834,2612.1,2611.3,2.4895]
[1723249780344,3.82873,2611.9,2611.3,2.4895]
[1723249780546,7.65685,2612.1,2611.3,2.4895]
[1723249780738,3.82839,2612.1,2611.3,6.31895]
[1723249781573,3.82889,2611.8,2611.3,2.4895]
[1723249781885,3.82884,2611.8,2611.0,3.82991]
[1723249782048,0.3,2612.2,2610.8,2.4895]
[1723249782049,3.82854,2612.0,2611.2,3.82956]
[1723249782249,3.82854,2612.0,2611.3,3.8295]
[1723249782468,3.82888,2611.8,2611.1,3.82969]
[1723249782853,3.8291,2611.6,2610.9,7.66003]
[1723249783178,3.8291,2611.6,2610.9,3.82998]
[1723249783476,3.82887,2611.8,2610.9,3.82998]
[1723249783680,3.82887,2611.8,2611.1,3.82978]
[1723249784188,3.82887,2611.8,2611.1,3.8297]
[1723249784359,3.82887,2611.8,2611.1,3.82969]
[1723249784552,3.82887,2611.8,2611.1,7.6594]
[1723249784955,3.82853,2612.0,2611.2,3.82956]
[1723249785152,3.82853,2612.0,2611.3,3.8294]
[1723249785781,3.0,2612.3,2611.1,3.82968]
[1723249785981,3.82911,2611.6,2610.9,3.82998]
[1723249786582,3.82911,2611.6,2610.8,2.4895]
[1723249786884,3.82937,2611.4,2610.8,5.4895]
[1723249787086,3.82924,2611.5,2610.8,9.31969]
[1723249787260,3.82911,2611.6,2610.9,7.66005]
[1723249787459,3.82892,2611.7,2611.0,3.82985]
[1723249787665,3.82892,2611.7,2610.9,3.82999]
[1723249787860,3.82907,2611.6,2610.9,3.82999]
[1723249788081,3.82907,2611.6,2610.4,5.396]
[1723249788082,3.8294,2611.4,2609.9,0.3829]
[1723249788280,3.83033,2610.8,2610.1,3.83124]
[1723249788588,3.8302,2610.9,2610.0,3.83133]
[1723249788795,7.66097,2610.7,2610.0,3.83133]
[1723249789090,3.83084,2610.4,2609.7,2.4895]
[1723249789472,3.83084,2610.4,2609.7,6.32131]
[1723249789792,7.66178,2610.4,2609.7,6.32131]
[1723249790085,3.83084,2610.4,2609.7,6.32131]
[1723249790453,3.83084,2610.4,2609.7,6.32126]
[1723249790876,3.83107,2610.3,2609.6,3.832]
[1723249791653,3.83113,2610.2,2609.5,3.83201]
[1723249791888,3.83113,2610.2,2609.6,3.832]
[1723249792088,3.83084,2610.4,2609.6,7.6639]
[1723249792277,3.83084,2610.4,2609.7,3.83176]
[1723249792600,3.831,2610.3,2609.6,3.8319]
[1723249792775,3.831,2610.3,2610.0,0.005]
[1723249793096,7.66177,2610.4,2610.0,0.005]
[1723249793278,3.83084,2610.4,2610.0,0.005]
[1723249793449,7.66177,2610.4,2610.0,0.005]
[1723249793653,3.83084,2610.4,2610.0,0.005]
[1723249794293,3.82884,2611.8,2610.0,0.005]
[1723249794505,3.83003,2611.0,2610.3,3.83092]
[1723249795161,3.83011,2610.9,2610.1,3.83117]
[1723249795691,3.83063,2610.6,2610.0,0.005]
[1723249795894,3.83038,2610.8,2610.1,3.83117]
[1723249796194,3.83038,2610.8,2610.0,3.83628]
[1723249796555,3.83078,2610.5,2610.0,0.005]
[1723249796793,3.83047,2610.7,2610.0,0.005]
[1723249797472,6.83017,2610.9,2610.0,3.83631]
[1723249797672,3.83034,2610.8,2610.1,3.83118]
[1723249797877,3.83034,2610.8,2610.0,3.83631]
[1723249798297,3.83034,2610.8,2610.0,7.66764]
[1723249798469,3.83034,2610.8,2610.1,3.83122]
[1723249798794,3.83034,2610.8,2610.0,7.66763]
[1723249798999,3.83034,2610.8,2610.0,3.83631]
[1723249799157,3.83034,2610.8,2610.0,7.66763]
[1723249799892,3.8304,2610.7,2610.0,0.005]
[1723249800099,3.83071,2610.5,2610.0,0.005]
[1723249800254,3.8304,2610.7,2610.0,0.005]
[1723249801070,3.83053,2610.6,2610.0,0.005]
[1723249801271,3.83027,2610.8,2610.1,3.83112]
[1723249801471,4.45828,2611.3,2610.0,0.005]
[1723249801472,3.82996,2611.0,2610.0,0.005]
[1723249801659,3.82975,2611.2,2610.1,7.7685]
[1723249801866,3.83032,2610.8,2610.1,2.4905]
[1723249802060,2.4578,2611.5,2610.0,0.005]
[1723249802061,3.8307,2610.5,2610.0,0.005]
[1723249802804,3.83014,2610.9,2610.0,0.005]
[1723249802961,3.83047,2610.7,2610.0,0.005]
[1723249803154,3.83047,2610.7,2610.1,3.83126]
[1723249803355,3.83047,2610.7,2610.0,0.005]
[1723249803356,0.766063,2610.7,2610.0,0.005]
[1723249803678,3.8311,2610.3,2610.0,0.005]
[1723249803853,3.83107,2610.3,2610.0,0.005]
[1723249804060,3.83091,2610.4,2610.0,0.005]
[1723249804775,7.66254,2610.1,2610.0,0.005]
[1723249805170,10.66254,2610.1,2610.0,0.005]
[1723249805480,3.83004,2611.0,2610.0,0.005]
[1723249805481,3.83013,2610.9,2610.0,0.005]
[1723249805659,3.83047,2610.7,2610.0,3.83632]
[1723249805862,1.066064,2610.7,2610.0,0.005]
[1723249806103,3.83125,2610.2,2610.0,0.005]
[1723249806412,3.82987,2611.1,2610.0,0.005]
[1723249806707,3.01372236,2611.5,2610.0,0.005]
[1723249806859,3.83049,2610.7,2610.0,0.005]
[1723249807058,3.01372236,2611.5,2610.0,0.005]
[1723249807308,3.01372236,2611.5,2610.3,3.8309]
[1723249807599,3.82957,2611.3,2610.5,3.83057]
[1723249807802,3.82969,2611.2,2610.4,2.4905]
[1723249808099,0.382843,2612.0,2610.5,0.07660693]
[1723249808406,2.4134,2612.3,2611.2,2.4905]
[1723249808617,2.4134,2612.3,2610.7,2.4905]
[1723249808618,3.82924,2611.5,2610.7,2.4905]
[1723249808774,3.82952,2611.3,2610.7,2.4905]
[1723249808974,3.83007,2611.0,2610.3,18.6314]
[1723249809304,4.06954,2612.2,2610.3,18.6314]
[1723249809305,3.82943,2611.4,2610.6,3.83052]
[1723249809473,7.65892,2611.4,2610.7,3.83038]
[1723249809676,3.82897,2611.7,2610.4,3.83076]
[1723249809977,3.83063,2610.6,2610.0,5.283]
[1723249810162,3.82958,2611.3,2610.3,3.83088]
[1723249810163,3.82981,2611.1,2610.3,3.83088]
[1723249810358,3.83021,2610.9,2610.0,5.283]
[1723249810566,3.82986,2611.1,2610.4,3.83082]
[1723249811063,0.382897,2611.6,2610.0,5.283]
[1723249811064,3.82934,2611.5,2610.7,3.83024]
[1723249811368,3.0,2611.4,2610.7,3.83038]
[1723249811566,3.0,2611.4,2610.1,11.32121]
[1723249811567,3.82895,2611.7,2610.4,9.10869]
[1723249811915,0.21716479,2612.7,2610.8,3.83017]
[1723249811916,2.4134,2612.3,2610.8,3.83017]
[1723249812062,3.82811,2612.3,2611.6,3.82893]
[1723249812407,3.82775,2612.5,2611.8,3.82875]
[1723249812900,3.82775,2612.5,2611.8,3.82867]
[1723249813118,3.8272,2612.9,2612.1,3.82832]
[1723249813264,3.8272,2612.9,2612.1,3.82829]
[1723249813467,3.84006092,2613.4,2612.1,3.82829]
[1723249813468,0.01363092,2613.4,2612.3,3.82794]
[1723249813717,0.01363092,2613.4,2612.2,3.90459714]
[1723249813718,3.82703,2613.0,2612.2,3.90459714]
[1723249813865,3.82703,2613.0,2612.1,2.4905]
[1723249813866,3.82719,2612.9,2612.1,2.4905]
[1723249814069,3.82719,2612.9,2611.2,9.06997356]
[1723249814070,2.4134,2613.0,2611.5,2.4905]
[1723249814301,3.82716,2612.9,2612.0,3.82836]
[1723249814516,3.82734,2612.8,2612.0,3.82836]
[1723249814687,3.82706,2613.0,2611.6,6.82893]
[1723249814688,3.84017092,2613.4,2612.5,3.8276]
[1723249814900,3.84017092,2613.4,2612.2,2.4905]
[1723249814901,0.01363092,2613.4,2612.7,3.82736]
[1723249815101,0.01363092,2613.4,2612.8,0.07653701]
[1723249815264,0.01363092,2613.4,2613.3,3.82657]
[1723249815465,0.01363092,2613.4,2613.3,7.65314]
[1723249815691,0.01363092,2613.4,2613.3,8.20314]
[1723249815901,0.01363092,2613.4,2613.0,6.31744]
[1723249816119,0.01363092,2613.4,2613.0,2.4905]
[1723249816306,0.01363092,2613.4,2613.2,3.82672]
[1723249816808,0.01363092,2613.4,2613.0,6.31747]
[1723249817129,0.01363092,2613.4,2613.2,3.82669]
[1723249817330,0.01363092,2613.4,2613.1,0.55]
[1723249817331,0.01363092,2613.4,2613.3,8.20314]
[1723249818241,0.01363092,2613.4,2613.3,4.37657]
[1723249818606,0.01363092,2613.4,2613.3,8.20314]
[1723249819797,0.01363092,2613.4,2613.3,12.02971]
[1723249820026,3.82456,2614.7,2613.9,3.82564]
[1723249820231,2.4134,2614.8,2613.3,3.55]
[1723249820428,2.4134,2614.8,2613.4,0.55]
[1723249820429,3.82532,2614.2,2613.4,0.55]
[1723249820703,3.82541,2614.1,2613.3,3.82651]
[1723249821023,3.82541,2614.1,2613.3,3.82647]
[1723249821234,3.82587,2613.8,2613.1,3.0]
[1723249821396,3.82611,2613.7,2613.0,6.31739]
[1723249821801,3.82634,2613.5,2612.8,3.82725]
[1723249822003,3.82568,2614.0,2613.1,3.82686]
[1723249822213,3.82595,2613.8,2613.0,3.827]
[1723249823144,3.8262,2613.6,2612.8,3.82725]
[1723249823344,3.82595,2613.8,2612.5,2.3938]
[1723249823345,3.82654,2613.4,2612.5,2.3938]
[1723249823564,3.82654,2613.4,2612.0,12.31]
[1723249823565,3.82704,2613.0,2612.2,9.26314]
[1723249823723,3.82704,2613.0,2612.0,2.3938]
[1723249823724,3.82742,2612.8,2612.0,3.82838]
[1723249823926,6.12772,2613.1,2611.6,6.22283]
[1723249824165,6.12772,2613.1,2611.4,7.49]
[1723249824166,3.82846,2612.1,2611.4,3.82931]
[1723249824316,3.82728,2612.9,2611.2,6.22341]
[1723249824515,3.82856,2612.0,2611.3,3.82949]
[1723249824760,3.82866,2611.9,2611.2,2.3938]
[1723249824952,3.0,2612.8,2610.7,9.26533]
[1723249824953,3.82903,2611.7,2610.9,3.82999]
[1723249825275,3.0,2612.2,2610.7,6.22412]
[1723249825430,3.82904,2611.7,2610.9,3.83006]
[1723249825630,3.0,2612.4,2610.7,6.22409]
[1723249825631,3.82946,2611.4,2610.7,6.22409]
[1723249825831,3.82914,2611.6,2610.8,3.83022]
[1723249826031,3.8293,2611.5,2610.7,6.22409]
[1723249826240,3.82914,2611.6,2610.7,6.22406]
[1723249826422,3.82914,2611.6,2610.9,3.83008]
[1723249826621,2.3008,2611.9,2610.7,2.3938]
[1723249826852,3.8298,2611.1,2610.3,3.83092]
[1723249827163,3.83002,2611.0,2610.3,3.83092]
[1723249827515,3.0,2611.7,2610.2,2.3938]
[1723249827721,3.83008,2611.0,2610.3,3.83097]
[1723249828058,3.83011,2610.9,2610.1,7.66233]
[1723249828258,3.83008,2611.0,2610.0,3.8364]
[1723249828259,3.83025,2610.8,2610.0,3.8364]
[1723249828460,3.82976,2611.2,2610.2,3.8311]
[1723249828645,3.82976,2611.2,2610.4,3.83069]
[1723249828956,3.82976,2611.2,2610.4,3.83072]
[1723249829159,3.82976,2611.2,2610.4,7.66142]
[1723249829357,3.83009,2611.0,2610.2,3.83106]
[1723249829783,3.0,2611.5,2610.0,0.005]
[1723249829784,3.8305,2610.7,2610.0,0.005]
[1723249830059,3.8301,2610.9,2610.0,0.005]
[1723249830272,6.82922,2611.5,2610.0,3.8363]
[1723249830273,3.83034,2610.8,2610.0,3.8363]
[1723249830719,3.83034,2610.8,2610.0,0.005]
[1723249830925,3.83054,2610.6,2610.0,0.005]
[1723249831124,6.13065,2611.1,2610.0,0.005]
[1723249831125,3.83081,2610.5,2610.0,0.005]
[1723249831326,3.83099,2610.3,2610.0,0.005]
[1723249831857,7.66254,2610.1,2610.0,0.005]
[1723249832033,3.83127,2610.1,2610.0,0.005]
[1723249832233,7.66254,2610.1,2610.0,0.005]
[1723249833038,10.66254,2610.1,2610.0,0.005]
[1723249833240,14.49381,2610.1,2610.0,0.005]
[1723249833461,16.173271,2610.1,2610.0,0.005]
[1723249833762,2.3008,2610.0,2608.8,0.1269629]
[1723249833933,3.83272,2609.2,2608.8,0.1269629]
[1723249834463,3.83274,2609.1,2608.8,0.1269629]
[1723249834760,3.83273,2609.1,2608.8,0.1269629]
[1723249835014,7.66545,2609.2,2608.8,0.1269629]
[1723249835313,6.83187,2609.7,2608.8,0.1269629]
[1723249835314,3.83245,2609.3,2608.8,0.1269629]
[1723249835621,3.83274,2609.1,2608.8,0.1269629]
[1723249835774,3.83289,2609.0,2608.8,0.1269629]
[1723249835979,3.83259,2609.2,2608.8,0.1269629]
[1723249836202,3.83219,2609.5,2608.8,0.1269629]
[1723249836404,6.13233,2610.0,2609.2,3.83258]
[1723249836591,3.83175,2609.8,2609.1,0.07664596]
[1723249837120,3.83106,2610.3,2609.6,3.83196]
[1723249837303,0.683015,2610.7,2609.4,3.8322]
[1723249837304,3.83113,2610.2,2609.4,3.8322]
[1723249837499,3.83113,2610.2,2609.5,3.83214]
[1723249837673,3.83113,2610.2,2609.4,3.8322]
[1723249837674,3.83116,2610.2,2609.4,3.8322]
[1723249838012,3.8311,2610.3,2609.0,3.83279]
[1723249838013,3.83197,2609.7,2609.0,3.83279]
[1723249838185,6.13115,2610.8,2609.5,3.83213]
[1723249838388,3.83123,2610.2,2609.4,3.83226]
[1723249838593,3.83123,2610.2,2609.5,0.07663476]
[1723249838792,7.66248,2610.2,2609.3,3.83244]
[1723249838996,3.83174,2609.8,2609.1,3.83272]
[1723249839221,3.83174,2609.8,2609.0,3.83278]
[1723249839519,3.8319,2609.7,2608.9,15.15589]
[1723249839716,3.83146,2610.0,2609.1,3.83264]
[1723249839896,3.83186,2609.7,2609.1,3.83264]
[1723249840224,3.0,2610.5,2609.1,3.83264]
[1723249840529,3.83147,2610.0,2609.1,3.83261]
[1723249840693,2.4609,2609.9,2608.9,7.49]
[1723249840882,7.66606,2608.9,2607.0,3.06988534]
[1723249841083,7.66606,2608.9,2607.9,3.83436]
[1723249841331,10.66606,2608.9,2607.9,3.83436]
[1723249841500,2.4609,2608.8,2606.3,2.4692]
[1723249841686,2.4609,2608.8,2607.2,3.83541]
[1723249841687,3.0109,2608.8,2607.2,3.83541]
[1723249842024,3.83453,2607.9,2607.0,3.83572]
[1723249842182,3.83506,2607.6,2606.7,3.83625]
[1723249842381,3.83483,2607.7,2606.9,3.83584]
[1723249842609,3.83497,2607.6,2606.7,3.83624]
[1723249842810,3.83497,2607.6,2606.9,3.83595]
[1723249843127,3.83497,2607.6,2606.7,3.83613]
[1723249843325,3.83565,2607.2,2606.4,3.83667]
[1723249843627,3.83565,2607.2,2606.3,2.4692]
[1723249843628,3.83565,2607.2,2606.3,6.30593]
[1723249843788,3.83565,2607.2,2606.4,3.83659]
[1723249843987,3.83569,2607.1,2606.3,6.30593]
[1723249844488,3.83592,2607.0,2606.3,3.83672]
[1723249844681,0.767134,2607.1,2606.3,3.83672]
[1723249844914,3.83565,2607.2,2606.1,0.1269629]
[1723249844915,3.837,2606.2,2606.1,0.1269629]
[1723249845097,7.674,2606.2,2606.1,0.1269629]
[1723249845284,13.1349,2606.2,2606.1,0.1269629]
[1723249845607,6.837,2606.2,2606.1,0.1269629]
[1723249846228,9.91727,2606.7,2606.1,0.1269629]
[1723249846229,2.4609,2606.7,2606.1,0.1269629]
[1723249846403,3.0,2606.6,2606.1,0.1269629]
[1723249846719,2.4609,2606.7,2606.1,0.1269629]
[1723249846720,3.837,2606.2,2606.1,0.1269629]
[1723249847040,2.4609,2606.7,2606.1,0.1269629]
[1723249847398,3.83533,2607.4,2606.4,3.83658]
[1723249847603,3.83554,2607.2,2606.2,3.83699]
[1723249847899,3.83626,2606.8,2606.1,0.1269629]
[1723249848100,3.83627,2606.7,2606.1,0.1269629]
[1723249848326,3.83653,2606.6,2606.1,0.1269629]
[1723249848516,3.83675,2606.4,2606.1,0.1269629]
[1723249848938,6.83652,2606.6,2606.1,0.1269629]
[1723249849399,3.8367,2606.4,2606.1,0.1269629]
[1723249849605,3.83685,2606.3,2606.1,0.1269629]
[1723249850100,3.0,2606.6,2606.1,0.1269629]
[1723249850301,3.83543,2607.3,2606.3,3.83672]
[1723249850500,3.8355,2607.3,2606.5,3.83654]